Cogmind - Beta 15 @@@ ROGUE MODE // 2025.09.04 @ 02:39:38 Player: odium reigns Result: Destroyed by SG-06T(R) with Subdweller Laser Performance ------------- Evolutions (0) 0 Regions Visited (2) 400 Robots Destroyed (18) 90 Value Destroyed (359) 359 Prototype IDs (0) 0 Alien Tech Used (0) 0 Bonus (0) 0 TOTAL SCORE: 849 Bonus ------- None Cogmind --------- Core Integrity 0/250 Matter 289/300 Energy 191/200 System Corruption 0% Temperature Cool (7) Movement Walking (190) Ox1 Location -10/Subcaves Parts ------- > --- POWER (1) -------- Subdweller Power Source > --- PROPULSION (2) --- Carbon-fiber Leg > --- UTILITY (2) ------ Small Storage Unit Subdweller Optics > --- WEAPON (2) ------- Subdweller Beam Cannon Light Assault Rifle > --- INVENTORY (8) ---- Subdweller Power Source Carbon-fiber Leg Improved Heat Sink Improved Heat Sink Small Matter Pod (50) Makeshift System Shield Mining Laser Peak State ------------ > --- POWER ------------ Subdweller Power Source > --- PROPULSION ------- Aluminum Leg Carbon-fiber Leg > --- UTILITY ---------- Small Storage Unit Subdweller Optics > --- WEAPON ----------- Light Assault Rifle Flamer > --- INVENTORY -------- Subdweller Power Source Carbon-fiber Leg Improved Heat Sink Improved Heat Sink Small Matter Pod Makeshift System Shield Mining Laser [Rating: 13] Favorites ----------- Power Subdweller Power Source Engine Subdweller Power Source Propulsion Aluminum Leg Treads Light Treads Leg Aluminum Leg Utility Small Storage Unit Device Subdweller Optics Storage Small Storage Unit Protection Scrap Shield Weapon Light Assault Rifle Energy Cannon Subdweller Beam Cannon Ballistic Gun Light Assault Rifle Special Weapon Flamer Build | -11 -10 -10 ------- Run | Yrd Mat Sub Slots Evolved . | . . . Power . | . . . Propulsion . | . . . Utility . | . . . Weapon . | . . . Parts Attached 19 | 7 . 12 Power 4 | 1 . 3 Engine 4 | 1 . 3 Core . | . . . Reactor . | . . . Propulsion 5 | 2 . 3 Treads 2 | . . 2 Leg 3 | 2 . 1 Wheel . | . . . Hover . | . . . Flight . | . . . Utility 4 | 2 . 2 Device 2 | 1 . 1 Storage 1 | 1 . . Processor . | . . . Hackware . | . . . Protection 1 | . . 1 Artifact . | . . . Weapon 6 | 2 . 4 Energy Gun . | . . . Energy Cannon 2 | . . 2 Ballistic Gun 3 | 2 . 1 Ballistic Cannon . | . . . Launcher . | . . . Special Weapon 1 | . . 1 Impact Weapon . | . . . Slashing Weapon . | . . . Piercing Weapon . | . . . Special Melee Weapon . | . . . Unidentified Prototypes . | . . . Parts Lost 6 | . . 6 Power 1 | . . 1 Propulsion 2 | . . 2 Utility 1 | . . 1 Weapon 2 | . . 2 Highest Loss Streak 3 | . . 3 To Critical Strikes . | . . . Average Backups 7 | 5 8 7 Power . | 1 2 . Propulsion 1 | 2 2 1 Utility 2 | . 2 3 Weapon 1 | 1 2 2 Tool/Special . | . . . Unused Backups 11 | 1 . 10 Power 4 | 1 . 3 Propulsion 1 | . . 1 Utility 5 | . . 5 Weapon 1 | . . 1 Tool/Special . | . . . Average Slot Usage (%) 88 | . 100 87 Engine 11 | . 14 11 Leg 23 | . 28 23 Device 12 | . 14 12 Storage 12 | . 14 12 Ballistic Gun 24 | . 28 23 Peak Build Rating 13 | 9 9 13 Average Rating 9 | 5 9 10 On Entrance 6 | . 9 9 Naked Turns . | . . . Heaviest Build 25 | 13 13 25 Greatest Support 25 | 20 20 25 Greatest Overweight (x) 1 | 1 . 1 Average Overweight (x) . | . . . Largest Inventory Capacity 8 | 8 8 8 Average Capacity 7 | 7 8 7 Most Carried 8 | 8 8 8 Average Carried 7 | 5 8 7 Final Capacity 8 | 8 8 8 Final Carried 8 | 8 8 7 Class Distribution -------------------- 100% | Mutant Dominant Class ---------------- Mutant | -10/Materials Mutant | -10/Subcaves Resources | -11 -10 -10 ----------- Run | Yrd Mat Sub Matter Collected 695 | 434 6 255 Remotely . | . . . Salvage Created 547 | 233 21 293 Parts 45 | 23 . 22 Haulers Intercepted . | . . . Recyclers Shooed . | . . . Parts Field Recycled . | . . . Retrieved Matter . | . . . Parts Self-Destructed 14 | . . 14 Prevented . | . . . Kills | -11 -10 -10 ------- Run | Yrd Mat Sub Combat Hostiles Destroyed 9 | . . 9 Guns 7 | . . 7 Cannons 2 | . . 2 Classes Destroyed 6 | 3 1 2 Worker 2 | 2 . . Tunneler 5 | 5 . . Recycler 1 | 1 . . Watcher 1 | . 1 . Swarmer 2 | . . 2 Subdweller 7 | . . 7 Best Kill Streak 4 | 4 1 2 Combat Bots Only 2 | . . 2 Max Kills in Single Turn 1 | 1 1 1 Gunslinging . | . . . Exploded . | . . . Melee . | . . . Uniques/NPCs Destroyed . | . . . Combat | -11 -10 -10 -------- Run | Yrd Mat Sub Hostile Shots Fired 147 | . . 147 Missed 72 | . . 72 Hits 75 | . . 75 Projectile 75 | . . 75 AOE 5 | . . 5 Damage Taken 1241 | . . 1241 Core 257 | . . 257 Absorbed by Shields . | . . . Core Remaining (%) 100 | 100 . . Volleys Fired 97 | 33 2 62 Largest 2 | 2 2 2 Hottest 120 | 40 40 120 Shots Fired 188 | 66 4 118 Gun 176 | 66 4 106 Cannon 5 | . . 5 Launcher . | . . . Special 7 | . . 7 Kinetic 176 | 66 4 106 Thermal 12 | . . 12 Explosive . | . . . Electromagnetic . | . . . Robot Hit Streak 21 | 7 1 21 Robot Miss Streak 4 | 4 2 4 Penetration Max . | . . . Secondary Targets 2 | . . 2 Max Gunslinging Chain 1 | . . 1 Shots Hit Robots 130 | 38 2 90 Core Hits 44 | 14 2 28 Critical Kills . | . . . Critical Parts Destroyed . | . . . Critical Strikes 1 | . . 1 Burn 1 | . . 1 Melee Attacks . | . . . Impact . | . . . Slashing . | . . . Piercing . | . . . Sneak Attacks . | . . . Combat Hostiles . | . . . Follow-up Attacks . | . . . Damage Inflicted 999 | 275 16 708 Guns 899 | 275 16 608 Cannons 55 | . . 55 Explosions . | . . . Melee . | . . . Ramming . | . . . Kinetic 899 | 275 16 608 Thermal 100 | . . 100 Explosive . | . . . Electromagnetic . | . . . Impact . | . . . Slashing . | . . . Piercing . | . . . Highest Corruption . | . . . Average Corruption . | . . . Corruption Purged . | . . . Corruption Blocked . | . . . Overload Shots . | . . . Overflow Damage . | . . . Projectiles . | . . . Explosions . | . . . Melee . | . . . Knockbacks . | . . . Impact . | . . . Kinetic . | . . . Secondary . | . . . Self-Inflicted Damage . | . . . Shots . | . . . Rammed . | . . . Targets Rammed . | . . . Kicked . | . . . Crushed . | . . . Highest Temperature 72 | . . 72 Average Temperature 15 | . . 15 Received Heat Transfer 264 | . . 264 Siege Activations . | . . . Martial Activations . | . . . Shielding Activations . | . . . Robots Disrupted . | . . . Combat Hostiles . | . . . Robots Corrupted . | . . . Combat Hostiles . | . . . Parts Fried . | . . . Impact Corruptions . | . . . Robots Melted . | . . . Combat Hostiles . | . . . Parts Melted 1 | . . 1 Heat Transferred 554 | . . 554 Parts Sabotaged . | . . . Parts Stolen . | . . . Parts Stripped . | . . . Power Chain Reactions . | . . . Alert | -11 -10 -10 ------- Run | Yrd Mat Sub Maximum Alert Level . | . . . Low Security (%) 100 | 100 100 . Level 1 . | . . . Level 2 . | . . . Level 3 . | . . . Level 4 . | . . . Level 5 . | . . . High Security . | . . . Max Security . | . . . Peak Influence 15 | 15 7 . Initial . | . . . Average 2 | 3 . . Influence Increases 237 | 40 7 190 Destroy 0b10 Robot/C 40 | . . 40 Destroy 0b10 Robot/NC 45 | 40 5 . Destroy Leader 2 | . 2 . Lose Combat Pursuer 150 | . . 150 Influence Decreases 163 | 40 7 116 Time Decay 133 | 40 7 86 Lost Part 30 | . . 30 Squads Dispatched . | . . . Investigation . | . . . Extermination . | . . . Reinforcement . | . . . Assault . | . . . Garrison . | . . . Intercept . | . . . Searches Triggered . | . . . Construction Impeded . | . . . Haulers Reinforced . | . . . Active Scanning Responses . | . . . Cargo Convoy Interrupts . | . . . Stealth | -11 -10 -10 --------- Run | Yrd Mat Sub Distress Signals . | . . . Communications Jammed . | . . . Distress Signals . | . . . Times Spotted 26 | . 1 25 Peak Tracking Total 10 | . 1 10 Tactical Retreats 3 | . . 3 Traps | -11 -10 -10 ------- Run | Yrd Mat Sub Traps Triggered 1 | . . 1 Indirectly . | . . . Trap Hack Attempts . | . . . Triggered . | . . . Disarmed . | . . . Reprogrammed . | . . . Reused . | . . . Traps Extracted . | . . . Installed . | . . . Triggered . | . . . Machines | -11 -10 -10 ---------- Run | Yrd Mat Sub Machines Disabled . | . . . Max in Single Turn . | . . . Machines Repaired . | . . . Machines Dismantled . | . . . Machines Sabotaged . | . . . Overloaded Fab Kills . | . . . Hacking | -11 -10 -10 --------- Run | Yrd Mat Sub Machines Accessed . | . . . Terminals . | . . . Fabricators . | . . . Repair Stations . | . . . Recycling Units . | . . . Scanalyzers . | . . . Garrison Access . | . . . Total Hacks . | . . . Successful . | . . . Failed . | . . . Catastrophic . | . . . Database Lockouts . | . . . Manual . | . . . Terminals . | . . . Fabricators . | . . . Repair Stations . | . . . Recycling Units . | . . . Scanalyzers . | . . . Garrison Access . | . . . Terminal Hacks . | . . . Fabricator Hacks . | . . . Repair Station Hacks . | . . . Recycling Unit Hacks . | . . . Scanalyzer . | . . . Garrison Access Hacks . | . . . Unauthorized Hacks . | . . . Terminals . | . . . Fabricators . | . . . Repair Stations . | . . . Recycling Units . | . . . Scanalyzers . | . . . Garrison Access . | . . . Data Cores Recovered . | . . . Used . | . . . Hacking Detections . | . . . Full Trace Events . | . . . Feedback Events . | . . . Feedback Blocked . | . . . Robot Schematics Acquired . | . . . Robots Built . | . . . Authchips . | . . . Time . | . . . Total Robot Build Rating . | . . . Part Schematics Acquired . | . . . Parts Built . | . . . Authchips . | . . . Time . | . . . Total Part Build Rating . | . . . Parts Repaired . | . . . Time . | . . . Parts Recycled . | . . . Recycled Matter . | . . . Retrieved Matter . | . . . Retrieved Components . | . . . Parts Scanalyzed . | . . . Part Schematics Acquired . | . . . Parts Damaged . | . . . Bothacking | -11 -10 -10 ------------ Run | Yrd Mat Sub Used RIF Installer . | . . . Robots Hacked . | . . . Non-combat . | . . . Combat . | . . . Robot Hacks Applied . | . . . Relay Couplers Released . | . . . Fabnet Peak Effective % . | . . . Robots Rewired . | . . . Allies Hacked . | . . . Hacks Repelled . | . . . Allies | -11 -10 -10 -------- Run | Yrd Mat Sub Total Allies . | . . . Largest Group . | . . . Highest-Rated Group . | . . . Highest-Rated Ally . | . . . Total Orders . | . . . Ally Attacks . | . . . Total Damage . | . . . Kills . | . . . Allies Corrupted . | . . . Allies Melted . | . . . Intel | -11 -10 -10 ------- Run | Yrd Mat Sub Active Infowar (turns) 629 | 50 91 488 Optics 352 | . . 352 Terrain 277 | 50 91 136 Robot Analysis Total . | . . . Derelict Logs Recovered . | . . . Drone Launches . | . . . Drone Recoveries . | . . . Exploration | -11 -10 -10 ------------- Run | Yrd Mat Sub Turns Passed 1344 | 204 91 1049 Spaces Moved 830 | 91 72 667 Core 18 | 18 . . Treads 34 | . . 34 Legs 778 | 73 72 633 Wheels . | . . . Hover . | . . . Flight . | . . . Fastest Speed 50 | 50 120 120 Average Speed 121 | 106 120 123 Slowest Speed 190 | 190 120 190 Overloaded Moves . | . . . Propulsion Burnouts . | . . . Robots Hopped . | . . . Potential Cave-ins . | . . . Cave-ins Triggered . | . . . Exploration Rate (%) 21 | 7 11 46 Regions Visited 2 Branch Regions 1 Pre-discovered Areas 1 | . . 1 Known Exits Taken . | . . . Unknown Exits Taken 2 | 1 1 . Scrap Searched 4 | . . 4 Spaces Dug . | . . . Terrain Destroyed . | . . . Melee . | . . . Projectile . | . . . AOE . | . . . Terrain Rammed . | . . . Walls Destroyed . | . . . Machines Disabled . | . . . Actions | -11 -10 -10 --------- Run | Yrd Mat Sub Total 1011 | 144 73 794 Wait 24 | . . 24 Move 828 | 90 71 667 Hop . | . . . Pick Up 26 | 13 . 13 Fast Attach 7 | 3 . 4 Attach 9 | 4 . 5 Detach . | . . . Swap 5 | . . 5 Drop 13 | 1 . 12 Fire 97 | 33 2 62 Melee . | . . . Ram . | . . . Kick . | . . . Crush . | . . . Escape Stasis . | . . . Rewire . | . . . Trap . | . . . Miscellaneous 2 | . . 2 Route ------- -11/Scrapyard -10/Materials -10/Subcaves (discovered 1 exit: [*Rec]) History --------- Turn | Location | Event 4 | -11/Scrapyard | Discovered new exit (range 15) 205 | -11/Scrapyard | Entered Materials 257 | -10/Materials | Discovered new exit (range 9) 296 | -10/Materials | Entered Subcaves 297 | -10/Subcaves | Approached by a straggling Scientist 301 | -10/Subcaves | Build established: Mutant 420 | -10/Subcaves | Disturbed a concealed Subdweller 422 | -10/Subcaves | Ambushed by swarm of Subdwellers 425 | -10/Subcaves | Ambushed by Subdweller buried in earth 430 | -10/Subcaves | Ambushed by Subdwellers from Twisted Machinery 503 | -10/Subcaves | Lost 4 allies 505 | -10/Subcaves | Ambushed by Subdweller buried in earth 551 | -10/Subcaves | Lost 3 parts (1p1n1u) 1062 | -10/Subcaves | Discovered new exit (range 10) 1255 | -10/Subcaves | Learned location of Zion (-6) 1255 | -10/Subcaves | Met a Zionite searching for "candidates" 1343 | -10/Subcaves | Core integrity fell below 50% 1344 | -10/Subcaves | Ambushed by Subdweller buried in earth 1345 | -10/Subcaves | Core integrity fell below 20% 1345 | -10/Subcaves | Destroyed by SG-06T(R) with Subdweller Laser Last Messages --------------- S-10 Pest suffers critical hit (Burn). S-10 Pest destroyed. Lgt. Assault Rifle fries itself beyond repair. S-10 Pest destroyed. Acquired 10 matter. Flight Unit fries itself beyond repair. Lgt. Assault Rifle fries itself beyond repair. Flamer destroyed. Aluminum Leg destroyed. Acquired 9 matter. Acquired Sub. Beam Cannon. Dropped Sub. Power Source. Acquired 10 matter. 1X-3B2(z): "She is not going to be happy we haven't found any suitable candidates yet." 1X-3B2(z): "Hey you! It's really dangerous down here, I feel that you could die at any moment. For your health and safety might I suggest a trip to Zion?" World map updated: -6/Zion. SG-06T(R): "ARGHSUB!" Map ----- +----------------------------------------------------+ | ?????? #???????????????????????????????????????? | | ?????? ???????????????????????????????????????? | | ??????# #???????????????????????????????????????? | | ??????# ???????????????????????????????????????? | | ?????? ???????????????????????????????????????? | | ?????? ???????????????????????????????????????? | | ??????# #?????????????????????????????? #???????? | | ??????# #?????????????????????????????? #???????? | | ?????## ##????????????????????????#""" ###?????? | | ?????# ???????????????????????##"""" ??????? | | ????## ##?????????????????????## """" #???????? | | ????# #?????????????????????? """" #????????? | | ?????# #?????????????????????? ?????????? | | ?????## #??????????????????????" ?????????# | | ??????# ##??????????????????????# ??????????#? | | ?????## #???????????????######### #???????????? | | ????## ##????????????###;;;%;##" ####?????????? | | ????# #????????????# ;;=% "" #?????????? | | ????# ##???????????# ; && #?######?## | | ????# #???????##### ;;## ##?# ### | | ????# #######??# # ;### ##??# """ | | ????# ## #??#; ;; ### ##??# | | ????# ##### R ### #### | | ????## #### # # ### ## | | ?????# ####### R "" ### | | ?##### #??# R @ """ ##### " | | ?# #?## ## "#"### " | | ?# #### #?# ### """ #### | | ?# ????## ### ### """ ##??? | | ?#??????# ## # """ ##### % #???? | | ?# ?????# ## ## "" ###???## #??## | | ?# ##??## ## #### #### ###?????##% ###### | | ?# #### ### # ##??# #???## ?????## ##?## | | ?## # #?# ##????# #?????? ?????# #??# " | | ??##### ## ?????? #???????# ????###??# " | | ??????# ??????? ???????# ??####### " | | ??????## #???? ????????# ### %# | | ???????## # ###??? ###?????????# % | | ????????## ### #???? ????????????# ## | | ?????????### #???#???? ????????????## # ##? | | ???????????? ?????????????????????#### ###?? | | ???????????? ???????????????????????# #???? | | ???????????? ## ?????????????????????## #???? | | ????????????? ?# ????????????????????# ##???? | | ????????????? ??# ???????????????????# ##????? | | ?????????????#???## ??????????????????# ##?????? | | ???????????????????? ? # ????????????# ##?????? | | ????????????????????? # ????????????# #?????? | | ????????????????????? #???????????# #?????? | | ????????????????????? ???######## ##?????? | +----------------------------------------------------+ Best States ------------- Heat Dissipation 25 Energy Generation 15 Energy Capacity 250 Matter Stores 300 Matter Capacity 300 Sight Range 21 Terrain Scan Range 16 Terrain Scan Density 10 Armor Coverage 800 Evasion (%) 55 Recoil Reduction 1 Item Schematics ----------------- None Robot Schematics ------------------ None Fabricated ------------ Nothing Repaired ---------- Nothing Alien Tech Used ----------------- None Achievements -------------- None Challenges ------------ None Game ------ Seed FissionSystemEngine Manual? 0 Play Time 00:17:56 Cumulative 33.9 hours Start 2025.09.04 @ 02:11:34 End 2025.09.04 @ 02:39:38 Sessions 1 Manual Loads 0 Difficulty Rogue Special Mode None Game No. 25 Rogue 25 Adventurer 0 Explorer 0 Win Type - Total 0 Types 0/0/0/0/0/0/0/0/0/0 Lore% 17 Gallery% 32 Achievement% 29 Wizard Run 0 Options --------- Layout 0 ASCII 0 Keyboard 0 Movement Mouse Keybinds 0 Fullscreen 1 Font 12/Smallcaps Map View 38x28 Zoom Use 100% Tactical HUD 0 Map Filters NONE Filters NONE Steam SD RUN: 70099408-f4d8-4724-80dc-87e2b0cb210b